Workbook

Sheet Bid Template REVISED
B1: CONSTRUCTION BID FORM | D1: BKA Proj # 225106
B3: BGR - The Halal Guys - Warwick, RI | D3: Bid Due Date: Friday, Oct 10th, 5pm
B4: 1727 Post Road, Warwick, RI
D5: New England Construction
D6: CONSTRUCTION | E6: COST ANALYSIS
B7: DIVISION | D7: BID | E7: COST / GSF
B9: EXECUTIVE SUMMARY
C10: DIVISION 00 - FEES | D10: =D37 -> 58815 | E10: =E37 -> 0
C11: DIVISION 01 - GENERAL CONDITIONS | D11: 121250 | E11: =E62 -> 0
C12: DIVISION 02 - EXISTING CONDITIONS | D12: =D68 -> 12250 | E12: =E68 -> 0.3536272048
C13: DIVISION 03 - CONCRETE | D13: =D75 -> 19070 | E13: =E75 -> 0
C14: DIVISION 05 - METALS | D14: =D84 -> 46432 | E14: =E84 -> 0
C15: DIVISION 06 - WOODS, PLASTICS & COMPOSITES | D15: =D91 -> 7373 | E15: =E91 -> 0
C16: DIVISION 07 - THERMAL MOISTURE PROTECTION | D16: =D106 -> 26000 | E16: =E106 -> 0
C17: DIVISION 08 - OPENINGS | D17: =D113 -> 8743 | E17: =E113 -> 0
C18: DIVISION 09 - FINISHES | D18: =D126 -> 120391 | E18: =E126 -> 0
C19: DIVISION 10 - SPECIALTIES | D19: =D134 -> 2675 | E19: =E134 -> 0
C20: DIVISION 11 - EQUIPMENT | D20: =D141 -> 54620 | E20: =E141 -> 0
C21: DIVISION 12 - FURNISHINGS | D21: =D147 -> 0 | E21: =E147 -> 0
C22: DIVISION 22 - PLUMBING | D22: =D157 -> 105420 | E22: =E157 -> 0
C23: DIVISION 23 - HVAC | D23: =D165 -> 119900 | E23: =E165 -> 0
C24: DIVISION 26 - ELECTRICAL | D24: =D174 -> 103000 | E24: =E174 -> 0
C25: DIVISION 28 - ELECTRONIC SAFETY & SECURITY | D25: =D181 -> 14875 | E25: =E181 -> 0
C26: DIVISION 31 - UTILITIES | D26: =D192 -> 0 | E26: =E192 -> 0
B28: CONSTRUCTION REPORT TOTAL | D28: =SUM(D10:D27) -> 820814 | E28: =SUM(E10:E27) -> 0.3536272048
B31: DIVISION 0 - FEES
C32: Contractor Fee + Overhead | D32: 46461 | E32: 0
C33: Insurance | D33: 12312 | E33: 0
C34: Sub guard Insurance | D34: 0 | E34: 0
C35: Tax | D35: 42 | E35: 0
B37: =B31&" TOTAL" -> DIVISION 0 - FEES TOTAL | D37: =SUM(D32:D36) -> 58815 | E37: =SUM(E32:E36) -> 0
B40: =$C$11 -> DIVISION 01 - GENERAL CONDITIONS
C41: General Conditions - Lump Sum | D41: 0 | E41: 0
C42: Project Manager | D42: 22425 | E42: 0
C43: Assistant Project Manager (if applicable) | D43: 12750 | E43: 0
C44: Site Management - Superintendent | D44: 69000 | E44: 0
C45: Site Management - Asst. Superintendent (if applicable) | D45: N/A | E45: 0
C46: Site Labor | D46: N/A | E46: 0
C47: Temporary Storage | D47: N/A | E47: 0
C48: Dumpsters | D48: 4950 | E48: 0
C49: Scaffolding | D49: N/A | E49: 0
C50: Temporary Utilities | D50: 3725 | E50: 0
C51: Construction Facilities - Site Office | D51: 3250 | E51: 0
C52: Site Maintenance and Protection | D52: N/A | E52: 0
C53: Mileage | D53: N/A | E53: 0
C54: Special Inspections | D54: N/A | E54: 0
C55: Permitting | D55: N/A | E55: 0
C56: Safety Signage | D56: Included | E56: 0
C57: Misc. Punchlist Close Out Items | D57: N/A | E57: 0
C58: Site Safety | D58: N/A | E58: 0
C59: Final Cleaning | D59: 1400 | E59: 0
C60: Submittals | D60: 3750 | E60: 0
B62: =B40&" TOTAL" -> DIVISION 01 - GENERAL CONDITIONS TOTAL | D62: =SUM(D41:D61) -> 121250 | E62: =SUM(E41:E61) -> 0
B65: DIVISION 02 - EXISTING CONDITIONS
C66: Selective demolition | D66: 12250 | E66: =D66/34641 -> 0.3536272048
B68: DIVISION 02 - EXISTING CONDITIONS TOTAL | D68: =SUM(D66:D67) -> 12250 | E68: =SUM(E66:E67) -> 0.3536272048
B71: =$C$13 -> DIVISION 03 - CONCRETE
C72: Cast in place Concrete, BUILDING Formwork | D72: 19070 | E72: 0
C73: Cast in Place Concrete, BUILDING flatwork | D73: Included | E73: 0
B75: =B71&" TOTAL" -> DIVISION 03 - CONCRETE TOTAL | D75: =SUM(D72:D74) -> 19070 | E75: =SUM(E72:E74) -> 0
B78: =$C$14 -> DIVISION 05 - METALS
C79: Structural Steel, Joists and Deck | D79: 24932 | E79: 0
C80: Structural metal stud framing | D80: N/A | E80: 0
C81: Misc. Metals BUILDING | D81: 21500 | E81: 0
C82: Misc. Metals SITE | D82: N/A | E82: 0
B84: =B78&" TOTAL" -> DIVISION 05 - METALS TOTAL | D84: =SUM(D79:D83) -> 46432 | E84: =SUM(E79:E83) -> 0
B87: =$C$15 -> DIVISION 06 - WOODS, PLASTICS & COMPOSITES
C88: Rough Carpentry | D88: 1373 | E88: 0
C89: Finish Carpentry | D89: 6000 | E89: 0
B91: =B87&" TOTAL" -> DIVISION 06 - WOODS, PLASTICS & COMPOSITES TOTAL | D91: =SUM(D88:D90) -> 7373 | E91: =SUM(E88:E90) -> 0
B94: =$C$16 -> DIVISION 07 - THERMAL MOISTURE PROTECTION
C95: Damproofing and Waterproofing | D95: In Div. 09 | E95: 0
C96: Building Insulation | D96: In Div. 09 | E96: 0
C97: Spray foam insulation | D97: N/A | E97: 0
C98: Air Barriers | D98: N/A | E98: 0
C99: Roofing and Flashing | D99: 25500 | E99: 0
C100: Firestopping/Fireproofing | D100: 500 | E100: 0
C101: Caulking & Joint Sealers | D101: N/A | E101: 0
C102: EIFS System | D102: N/A | E102: 0
C103: Composite Metal Panels | D103: N/A | E103: 0
C104: Vapor Barrier | D104: N/A | E104: 0
B106: =B94&" TOTAL" -> DIVISION 07 - THERMAL MOISTURE PROTECTION TOTAL | D106: =SUM(D95:D105) -> 26000 | E106: =SUM(E95:E105) -> 0
B109: =$C$17 -> DIVISION 08 - OPENINGS
C110: Doors and Frames | D110: 8743 | E110: 0
C111: Hardware | D111: Included | E111: 0
B113: =B109&" TOTAL" -> DIVISION 08 - OPENINGS TOTAL | D113: =SUM(D110:D112) -> 8743 | E113: =SUM(E110:E112) -> 0
B116: =$C$18 -> DIVISION 09 - FINISHES
C117: Gypsum Wall Board | D117: 47521 | E117: 0
C118: Non-Strutural Metal Framing | D118: Included | E118: 0
C119: Tiling | D119: 57500 | E119: 0
C120: Acoustical ceilings (panel & grid) | D120: 5000 | E120: 0
C121: FRP | D121: In Gyp. Bd | E121: 0
C122: Resilient Flooring & Base | D122: N/A | E122: 0
C123: Wall Finishes | D123: 4620 | E123: 0
C124: Paints and Coatings | D124: 5750 | E124: 0
B126: =B116&" TOTAL" -> DIVISION 09 - FINISHES TOTAL | D126: =SUM(D117:D125) -> 120391 | E126: =SUM(E117:E125) -> 0
B129: =$C$19 -> DIVISION 10 - SPECIALTIES
C130: Wall and Door Protection | D130: N/A | E130: 0
C131: Toilet Room Accessories | D131: 1375 | E131: 0
C132: Safety Specialties - Fire Extinguishers & Cabinets | D132: 1300 | E132: 0
B134: =B129&" TOTAL" -> DIVISION 10 - SPECIALTIES TOTAL | D134: =SUM(D130:D133) -> 2675 | E134: =SUM(E130:E133) -> 0
B137: DIVISIONS 11 - EQUIPMENT
C138: Installation of vendor-provided equipment, millwork, & furniture | D138: 54620 | E138: 0
C139: F&I of equipment per equipment plan | D139: N/A | E139: 0
B141: DIVISIONS 11 - EQUIPMENT TOTAL | D141: =SUM(D138:D140) -> 54620 | E141: =SUM(E138:E140) -> 0
B144: DIVISION 12 - FURNISHINGS
B147: =B144&" TOTAL" -> DIVISION 12 - FURNISHINGS TOTAL | D147: =SUM(D145:D146) -> 0 | E147: =SUM(E145:E146) -> 0
B150: =$C$22 -> DIVISION 22 - PLUMBING
C151: Domestic Water Piping | D151: 105420 | E151: 0
C152: Sanitary Waste & Vent Piping | D152: Included | E152: 0
C153: Plumbing Fixtures | D153: Included | E153: 0
C154: Water Heaters | D154: Included | E154: 0
C155: Plumbing installation | D155: Included | E155: 0
B157: =B150&" TOTAL" -> DIVISION 22 - PLUMBING TOTAL | D157: =SUM(D151:D156) -> 105420 | E157: =SUM(E151:E156) -> 0
B160: =$C$23 -> DIVISION 23 - HVAC
C161: HVAC | D161: 119900 | E161: 0
C162: Automatic Temperature Controls | D162: 0 | E162: 0
C163: Testing and Balancing | D163: Included | E163: 0
B165: =B160&" TOTAL" -> DIVISION 23 - HVAC TOTAL | D165: =SUM(D161:D164) -> 119900 | E165: =SUM(E161:E164) -> 0
B168: DIVISION 26 - ELECTRICAL
C169: Electrical Systems | D169: 103000 | E169: 0
C170: Lighting and Devices | D170: 0 | E170: 0
C171: Electrical Miscellaneous | D171: 0 | E171: 0
C172: Voice Communications | D172: 0 | E172: 0
B174: =B168& "TOTAL" -> DIVISION 26 - ELECTRICAL TOTAL | D174: =SUM(D169:D173) -> 103000 | E174: =SUM(E169:E173) -> 0
B177: =$C$25 -> DIVISION 28 - ELECTRONIC SAFETY & SECURITY
C178: Access Controls & Security Systems | D178: N/A | E178: 0
C179: Fire Detection and Alarm System | D179: 14875 | E179: 0
B181: =B177&" TOTAL" -> DIVISION 28 - ELECTRONIC SAFETY & SECURITY TOTAL | D181: =SUM(D178:D180) -> 14875 | E181: =SUM(E178:E180) -> 0
B184: DIVISON 33 - UTILITIES
C185: Water Utilites | D185: 0 | E185: 0
C186: Sewer utilites | D186: 0 | E186: 0
C187: Storm Utilities | D187: 0 | E187: 0
C188: Electrical and Communication Untilites | D188: 0 | E188: 0
C189: Gas Utilites | D189: 0 | E189: 0
C190: Plumbing Utilites | D190: 0 | E190: 0
B192: DIVISON 33 - UTILITIES TOTAL | D192: =SUM(D185:D191) -> 0 | E192: =SUM(E185:E191) -> 0
B195: CONSTRUCTION REPORT TOTAL | D195: =D28 -> 820814 | E195: =E28 -> 0.3536272048
B198: ALTERNATE #1 | D198: 0 | E198: 0
C199: Description of Alternate
B201: ALTERNATE #2 | D201: 0 | E201: 0
C202: Description of Alternate
B204: ALTERNATE #3 | D204: 0 | E204: 0
C205: Description of Alternate
